Cogmind - Beta 11.1 @@@ ROGUE MODE // 2022.12.13 @ 14:49:01 Player: omewwes Result: Self-destructed Performance ------------- Evolutions (3) 1500 Regions Visited (5) 1000 Robots Destroyed (51) 255 Value Destroyed (1396) 1396 Prototype IDs (1) 20 Alien Tech Used (0) 0 Bonus (125) 125 TOTAL SCORE: 4296 Bonus ------- High Alert Combat Kills 57 Follower Combat Kills 68 Cogmind --------- Core Integrity 630/700 Matter 49/300 Energy 100/100 System Corruption 0% Temperature Warm (108) Movement Walking (130) Location -7/Factory Parts ------- > --- POWER (1) -------- (None) > --- PROPULSION (3) --- Improved Titanium Leg Improved Titanium Leg Improved Titanium Leg > --- UTILITY (7) ------ Medium Storage Unit Improved Targeting Computer Advanced ECM Suite Hardened Medium Armor Plating Hacking Suite Hacking Suite Hacking Suite > --- WEAPON (2) ------- Advanced Assault Cannon Gauss Cannon > --- INVENTORY (10) --- Improved Aluminum Leg Improved Titanium Leg Cryofiber Web Improved Heat Sink Improved Sensor Array Particle Charger Hardened Medium Armor Plating Improved Shield Generator Component Analysis Suite Rocket Launcher Peak State ------------ > --- POWER ------------ Light Nuclear Core > --- PROPULSION ------- Improved Titanium Leg Improved Titanium Leg Improved Titanium Leg > --- UTILITY ---------- Medium Storage Unit Improved Targeting Computer Advanced ECM Suite Hardened Medium Armor Plating Hacking Suite Hacking Suite Hacking Suite > --- WEAPON ----------- Advanced Assault Cannon Gauss Cannon > --- INVENTORY -------- Improved Aluminum Leg Improved Titanium Leg Cryofiber Web Improved Heat Sink Improved Sensor Array Particle Charger Hardened Medium Armor Plating Improved Shield Generator Component Analysis Suite Rocket Launcher [Rating: 45] Favorites ----------- Power Ion Engine Engine Ion Engine Power Core Light Nuclear Core Propulsion Improved Titanium Leg Leg Improved Titanium Leg Utility Improved Targeting Computer Device Improved Heat Sink Storage Small Storage Unit Processor Improved Targeting Computer Hackware Hacking Suite Protection Hardened Medium Armor Plating Weapon Beam Cannon Energy Gun Medium Laser Energy Cannon Beam Cannon Ballistic Gun Heavy Assault Rifle Ballistic Cannon Advanced Assault Cannon Launcher Rocket Launcher Build | -11 -10 -9 -9 -8 -7 ------- Run | Scr Mat Mat Min Mat Fac Slots Evolved 6 | . . 2 . 2 2 Power . | . . . . . . Propulsion 1 | . . . . 1 . Utility 5 | . . 2 . 1 2 Weapon . | . . . . . . Parts Attached 53 | 6 8 14 2 14 9 Power 8 | 1 1 4 . 2 . Engine 6 | 1 1 3 . 1 . Core 2 | . . 1 . 1 . Reactor . | . . . . . . Propulsion 13 | 2 3 4 . 4 . Treads . | . . . . . . Leg 13 | 2 3 4 . 4 . Wheel . | . . . . . . Hover . | . . . . . . Flight . | . . . . . . Utility 15 | 1 1 3 . 4 6 Device 8 | . 1 2 . 2 3 Storage 2 | 1 . . . 1 . Processor 1 | . . 1 . . . Hackware 3 | . . . . . 3 Protection 1 | . . . . 1 . Artifact . | . . . . . . Weapon 17 | 2 3 3 2 4 3 Energy Gun 1 | 1 . . . . . Energy Cannon 9 | . 1 3 1 3 1 Ballistic Gun 3 | 1 2 . . . . Ballistic Cannon 2 | . . . . . 2 Launcher 2 | . . . 1 1 . Special Weapon . | . . . . . . Impact Weapon . | . . . . . . Slashing Weapon . | . . . . . . Piercing Weapon . | . . . . . . Special Melee Weapon . | . . . . . . Unidentified Prototypes 1 | . . 1 . . . Parts Lost 9 | . 2 5 . 1 1 Power 5 | . 1 2 . 1 1 Propulsion 1 | . 1 . . . . Utility 1 | . . 1 . . . Weapon 2 | . . 2 . . . Highest Loss Streak 3 | . 2 3 . 1 1 To Critical Strikes . | . . . . . . Average Slot Usage (%) 96 | . 90 98 100 97 96 Engine 6 | . 14 9 11 8 . Core 2 | . . . . . 6 Leg 24 | . 28 22 22 27 23 Device 14 | . 4 21 22 18 13 Storage 9 | . 14 11 11 9 7 Processor 7 | . . 10 11 9 7 Hackware 4 | . . . . . 13 Protection 3 | . . . . 6 7 Energy Gun 1 | . 8 . . . . Energy Cannon 10 | . 1 19 21 17 4 Ballistic Gun 3 | . 18 2 . . . Ballistic Cannon 3 | . . . . . 9 Naked Turns . | . . . . . . Heaviest Build 39 | 13 17 18 19 33 39 Greatest Support 60 | 20 26 26 20 60 60 Greatest Overweight (x) 1 | 1 . . . . 1 Average Overweight (x) . | . . . . . . Largest Inventory Capacity 10 | 8 8 8 8 10 10 Average Capacity 8 | 6 8 8 8 9 10 Most Carried 10 | 1 8 8 8 10 10 Average Carried 7 | . 3 7 8 9 9 Final Capacity 10 | 8 8 8 8 10 10 Final Carried 10 | 1 8 8 8 10 10 Class Distribution -------------------- 49% | Mutant 38% | Scavenger-Mutant 12% | Hacker-Mutant Dominant Class ---------------- Mutant | -10/Materials Scavenger-Mutant | -9/Materials Scavenger-Mutant | -9/Mines Mutant | -8/Materials Scavenger-Mutant | -7/Factory Resources | -11 -10 -9 -9 -8 -7 ----------- Run | Scr Mat Mat Min Mat Fac Matter Collected 914 | 229 160 174 51 190 110 Remotely . | . . . . . . Salvage Created 1634 | . 326 898 4 177 229 Parts 112 | . 27 56 . 16 13 Haulers Intercepted 5 | . 2 2 . . 1 Recyclers Shooed . | . . . . . . Parts Field Recycled . | . . . . . . Retrieved Matter . | . . . . . . Parts Self-Destructed . | . . . . . . Prevented . | . . . . . . Kills | -11 -10 -9 -9 -8 -7 ------- Run | Scr Mat Mat Min Mat Fac Combat Hostiles Destroyed 43 | . 9 19 2 6 7 Guns 10 | . 9 1 . . . Cannons 28 | . . 18 1 2 7 AOE 5 | . . . 1 4 . Classes Destroyed 10 | . 3 4 2 . 1 Worker 1 | . . 1 . . . Hauler 5 | . 2 2 . . 1 Operator 3 | . . 2 . 1 . Swarmer 17 | . 6 4 . 4 3 Grunt 15 | . 3 10 . 1 1 Duelist 1 | . . 1 . . . Sentry 7 | . . 4 . 1 2 Demolisher 1 | . . . 1 . . Programmer 1 | . . . . . 1 Assembled 1 | . . . 1 . . Best Kill Streak 6 | . 6 6 1 4 3 Combat Bots Only 6 | . 6 6 1 4 3 Max Kills in Single Turn 2 | . 1 1 1 2 1 Gunslinging . | . . . . . . Exploded 2 | . . . 1 2 . Melee . | . . . . . . Uniques/NPCs Destroyed . | . . . . . . Combat | -11 -10 -9 -9 -8 -7 -------- Run | Scr Mat Mat Min Mat Fac Damage Taken 2112 | . 403 914 12 157 626 Core 359 | . 60 229 . . 70 Absorbed by Shields . | . . . . . . Core Remaining (%) 79 | 100 76 . 42 100 . Volleys Fired 132 | . 40 50 3 11 28 Largest 2 | . 2 2 2 2 2 Hottest 120 | . 70 120 120 120 112 Shots Fired 258 | . 81 99 5 17 56 Gun 90 | . 81 9 . . . Cannon 162 | . . 90 4 12 56 Launcher 6 | . . . 1 5 . Special . | . . . . . . Kinetic 107 | . 52 9 . . 46 Thermal 131 | . 29 90 4 4 4 Explosive 6 | . . . 1 5 . Electromagnetic 14 | . . . . 8 6 Robot Hit Streak 12 | . 9 12 2 4 11 Robot Miss Streak 3 | . 3 2 1 2 3 Penetration Max . | . . . . . . Secondary Targets . | . . . . . . Shots Hit Robots 162 | . 47 65 3 8 39 Core Hits 71 | . 17 30 3 8 13 Critical Kills . | . . . . . . Critical Parts Destroyed . | . . . . . . Critical Strikes 5 | . 2 . . . 3 Burn 2 | . 2 . . . . Blast 3 | . . . . . 3 Melee Attacks . | . . . . . . Impact . | . . . . . . Slashing . | . . . . . . Piercing . | . . . . . . Sneak Attacks . | . . . . . . Combat Hostiles . | . . . . . . Follow-up Attacks . | . . . . . . Damage Inflicted 3270 | . 569 1199 79 457 966 Guns 660 | . 569 91 . . . Cannons 2310 | . . 1108 53 183 966 Explosions 300 | . . . 26 274 . Melee . | . . . . . . Ramming . | . . . . . . Kinetic 1218 | . 321 91 . . 806 Thermal 1507 | . 248 1108 53 34 64 Explosive 300 | . . . 26 274 . Electromagnetic 245 | . . . . 149 96 Impact . | . . . . . . Slashing . | . . . . . . Piercing . | . . . . . . Highest Corruption 3 | . 3 . . . . Average Corruption 2 | . 2 . . . . Corruption Purged . | . . . . . . Corruption Blocked . | . . . . . . Effects 11 | . 11 . . . . Message Errors 4 | . 4 . . . . Matter Fused 1 | . 1 . . . . Heat Flow Errors 2 | . 2 . . . . Data Loss (minor) 1 | . 1 . . . . Data Loss (major) 2 | . 2 . . . . Misfires 1 | . 1 . . . . Overload Shots . | . . . . . . Overflow Damage 27 | . . 15 12 . . Projectiles 27 | . . 15 12 . . Explosions . | . . . . . . Melee . | . . . . . . Knockbacks 5 | . . . . . 5 Impact . | . . . . . . Kinetic 5 | . . . . . 5 Secondary . | . . . . . . Self-Inflicted Damage . | . . . . . . Shots . | . . . . . . Rammed . | . . . . . . Targets Rammed . | . . . . . . Kicked . | . . . . . . Crushed . | . . . . . . Highest Temperature 292 | . 292 135 . 105 108 Average Temperature 61 | . 78 52 . 40 31 Received Heat Transfer 606 | . 129 273 . 54 150 Effects 2 | . 2 . . . . Interference 2 | . 2 . . . . Siege Activations . | . . . . . . Robots Corrupted . | . . . . . . Combat Hostiles . | . . . . . . Parts Fried 5 | . . . . 2 3 Impact Corruptions . | . . . . . . Robots Melted . | . . . . . . Combat Hostiles . | . . . . . . Parts Melted 7 | . 1 6 . . . Heat Transferred 3515 | . 888 2331 111 74 111 Parts Sabotaged . | . . . . . . Parts Stolen . | . . . . . . Parts Stripped . | . . . . . . Power Chain Reactions . | . . . . . . Missiles Intercepted . | . . . . . . Alert | -11 -10 -9 -9 -8 -7 ------- Run | Scr Mat Mat Min Mat Fac Peak Influence 583 | . 234 583 246 382 228 Initial 186 | . . 20 186 95 168 Average 175 | . 83 304 212 242 133 Maximum Alert Level 2 | . 1 2 1 1 1 Low Security (%) 59 | 100 78 32 50 39 70 Level 1 35 | . 21 39 49 60 29 Level 2 5 | . . 28 . . . Level 3 . | . . . . . . Level 4 . | . . . . . . Level 5 . | . . . . . . High Security . | . . . . . . Max Security . | . . . . . . Squads Dispatched 8 | . . 3 . 1 4 Investigation . | . . . . . . Extermination 2 | . . . . . 2 Reinforcement 4 | . . 3 . 1 . Assault . | . . . . . . Garrison 2 | . . . . . 2 Intercept . | . . . . . . Searches Triggered . | . . . . . . Construction Impeded . | . . . . . . Haulers Reinforced . | . . . . . . Active Scanning Responses . | . . . . . . Cargo Convoy Interrupts . | . . . . . . Stealth | -11 -10 -9 -9 -8 -7 --------- Run | Scr Mat Mat Min Mat Fac Distress Signals 5 | . 1 4 . . . Communications Jammed . | . . . . . . Distress Signals . | . . . . . . Times Spotted 69 | . 15 29 2 10 13 Peak Tracking Total 9 | . 8 9 1 4 4 Tactical Retreats 5 | . . 2 . . 3 Traps | -11 -10 -9 -9 -8 -7 ------- Run | Scr Mat Mat Min Mat Fac Traps Triggered 3 | . 3 . . . . Indirectly . | . . . . . . Trap Hack Attempts . | . . . . . . Triggered . | . . . . . . Disarmed . | . . . . . . Reprogrammed . | . . . . . . Reused . | . . . . . . Traps Extracted . | . . . . . . Installed . | . . . . . . Triggered . | . . . . . . Machines | -11 -10 -9 -9 -8 -7 ---------- Run | Scr Mat Mat Min Mat Fac Machines Disabled 4 | . . 2 . 1 1 Max in Single Turn 1 | . . 1 . 1 1 Garrison Access 1 | . . . . . 1 Machines Sabotaged . | . . . . . . Garrisons Compromised . | . . . . . . Overloaded Fab Kills . | . . . . . . Hacking | -11 -10 -9 -9 -8 -7 --------- Run | Scr Mat Mat Min Mat Fac Machines Accessed 7 | . 1 . . 3 3 Terminals 6 | . 1 . . 3 2 Fabricators . | . . . . . . Repair Stations . | . . . . . . Recycling Units . | . . . . . . Scanalyzers . | . . . . . . Garrison Access 1 | . . . . . 1 Total Hacks 16 | . 3 . . 7 6 Successful 6 | . . . . 3 3 Failed 10 | . 3 . . 4 3 Catastrophic 1 | . . . . . 1 Database Lockouts . | . . . . . . Manual 4 | . . . . . 4 Terminals 14 | . 3 . . 7 4 Fabricators . | . . . . . . Repair Stations . | . . . . . . Recycling Units . | . . . . . . Scanalyzers . | . . . . . . Garrison Access 2 | . . . . . 2 Terminal Hacks 5 | . . . . 3 2 Branch Access Points 1 | . . . . . 1 Fabricator Index 1 | . . . . . 1 Hauler Manifests 1 | . . . . 1 . Registered Components 1 | . . . . 1 . Zone Layout 1 | . . . . 1 . Fabricator Hacks . | . . . . . . Repair Station Hacks . | . . . . . . Recycling Unit Hacks . | . . . . . . Scanalyzer . | . . . . . . Garrison Access Hacks 1 | . . . . . 1 Seal Access 1 | . . . . . 1 Unauthorized Hacks . | . . . . . . Terminals . | . . . . . . Fabricators . | . . . . . . Repair Stations . | . . . . . . Recycling Units . | . . . . . . Scanalyzers . | . . . . . . Garrison Access . | . . . . . . Data Cores Recovered 1 | . . . . 1 . Used 1 | . . . . 1 . Hacking Detections 5 | . 1 . . 1 3 Full Trace Events . | . . . . . . Feedback Events . | . . . . . . Feedback Blocked . | . . . . . . Robot Schematics Acquired . | . . . . . . Robots Built . | . . . . . . Authchips . | . . . . . . Time . | . . . . . . Total Robot Build Rating . | . . . . . . Part Schematics Acquired . | . . . . . . Parts Built . | . . . . . . Authchips . | . . . . . . Time . | . . . . . . Total Part Build Rating . | . . . . . . Parts Repaired . | . . . . . . Time . | . . . . . . Parts Recycled . | . . . . . . Recycled Matter . | . . . . . . Retrieved Matter . | . . . . . . Retrieved Components . | . . . . . . Parts Scanalyzed . | . . . . . . Part Schematics Acquired . | . . . . . . Parts Damaged . | . . . . . . Bothacking | -11 -10 -9 -9 -8 -7 ------------ Run | Scr Mat Mat Min Mat Fac Used RIF Installer . | . . . . . . Robots Hacked . | . . . . . . Non-combat . | . . . . . . Combat . | . . . . . . Robot Hacks Applied . | . . . . . . Relay Couplers Released . | . . . . . . Fabnet Peak Effective % . | . . . . . . Robots Rewired . | . . . . . . Allies Hacked . | . . . . . . Hacks Repelled . | . . . . . . Allies | -11 -10 -9 -9 -8 -7 -------- Run | Scr Mat Mat Min Mat Fac Total Allies 3 | . . . 3 . . Largest Group 3 | . . . . 3 . Highest-Rated Group 40 | . . . . 40 . Highest-Rated Ally 16 | . . . . 16 . Total Orders . | . . . . . . Ally Attacks 17 | . . . . 17 . Total Damage 157 | . . . . 157 . Kills 2 | . . . . 2 . Allies Corrupted . | . . . . . . Allies Melted . | . . . . . . Intel | -11 -10 -9 -9 -8 -7 ------- Run | Scr Mat Mat Min Mat Fac Robot Analysis Total . | . . . . . . Derelict Logs Recovered 1 | . . . 1 . . Drone Launches . | . . . . . . Drone Recoveries . | . . . . . . Exploration | -11 -10 -9 -9 -8 -7 ------------- Run | Scr Mat Mat Min Mat Fac Turns Passed 2827 | 54 537 523 339 340 1034 Spaces Moved 1766 | 40 329 261 268 219 649 Core 6 | 6 . . . . . Treads . | . . . . . . Legs 1760 | 34 329 261 268 219 649 Wheels . | . . . . . . Hover . | . . . . . . Flight . | . . . . . . Fastest Speed 50 | 50 120 120 120 120 130 Average Speed 124 | 110 120 120 120 129 130 Slowest Speed 200 | 120 120 120 120 130 200 Overloaded Moves . | . . . . . . Propulsion Burnouts . | . . . . . . Robots Hopped . | . . . . . . Cave-ins Triggered . | . . . . . . Exploration Rate (%) 34 | 2 72 31 63 25 16 Regions Visited 5 Branch Regions 1 Pre-discovered Areas 1 | . . . 1 . . Known Exits Taken . | . . . . . . Unknown Exits Taken 5 | 1 1 1 1 1 . Scrap Searched 1 | . . . 1 . . Spaces Dug 8 | . . . . 8 . Terrain Destroyed 63 | . . . 11 44 8 Melee . | . . . . . . Projectile 8 | . . . . . 8 AOE 55 | . . . 11 44 . Terrain Rammed . | . . . . . . Walls Destroyed . | . . . . . . Machines Disabled . | . . . . . . Actions | -11 -10 -9 -9 -8 -7 --------- Run | Scr Mat Mat Min Mat Fac Total 2140 | 46 400 374 279 259 782 Wait 134 | . 6 33 7 2 86 Move 1761 | 39 328 260 267 218 649 Hop . | . . . . . . Pick Up 25 | 1 10 6 . 4 4 Fast Attach 23 | 6 3 7 . 5 2 Attach 12 | . 2 5 . 2 3 Detach 8 | . 2 3 . 2 1 Swap 18 | . 3 2 2 7 4 Drop 27 | . 6 8 . 8 5 Fire 132 | . 40 50 3 11 28 Melee . | . . . . . . Ram . | . . . . . . Kick . | . . . . . . Crush . | . . . . . . Escape Stasis . | . . . . . . Rewire . | . . . . . . Trap . | . . . . . . Miscellaneous . | . . . . . . Route ------- -11/Scrapyard -10/Materials (discovered 2 exits: [*Mat] / [*Min]) -9/Materials -9/Mines -8/Materials -7/Factory (discovered 3 exits: [*Fac] / Low x2) History --------- Turn | Location | Event 10 | -11/Scrapyard | Discovered new exit (range 15) 55 | -11/Scrapyard | Entered Materials 194 | -10/Materials | Discovered new exit (range 16) 303 | -10/Materials | Build established: Mutant 540 | -10/Materials | Discovered new exit (range 13) 592 | -10/Materials | Entered another Materials area 592 | -9/Materials | Evolved 2 slots: Utility x2 983 | -9/Materials | Lost 3 parts (1u2w) 1055 | -9/Materials | Core integrity fell below 50% 1097 | -9/Materials | Discovered new exit (range 15) 1115 | -9/Materials | Entered Mines 1121 | -9/Mines | Build established: Scavenger-Mutant 1144 | -9/Mines | Met a Derelict bent on vengeance 1215 | -9/Mines | Assembled infested the area 1427 | -9/Mines | Discovered new exit (range 15) 1429 | -9/Mines | Learned location of Zion (-6) 1450 | -9/Mines | Assisted by bots powering up and referring to "LRC-V3" 1454 | -9/Mines | Entered Materials 1454 | -8/Materials | Accompanied by 3 allies 1454 | -8/Materials | Evolved 2 slots: Propulsion x1, Utility x1 1750 | -8/Materials | Discovered new exit (range 11) 1754 | -8/Materials | Build established: Mutant 1794 | -8/Materials | Entered Factory 1794 | -7/Factory | Evolved 2 slots: Utility x2 2325 | -7/Factory | Identified exit to Lower Caves 2338 | -7/Factory | Build established: Scavenger-Mutant 2594 | -7/Factory | Garrison activated, responded to threat 2764 | -7/Factory | Discovered new exit (range 8) 2773 | -7/Factory | Build established: Hacker-Mutant 2819 | -7/Factory | Garrison activated, responded to threat 2828 | -7/Factory | Self-destructed Last Messages --------------- 02686_ Y-54 Guardian Imp. Heat Sink blasted off. 02689_ Y-54 Guardian Gatling Laser blasted off. 02692_ Slug penetrates Y-54 Guardian. 02701_ Y-54 Guardian destroyed. 02701_ Slug penetrates Wall. 02702_ U-05 Engineer builds a Wall. 02708_ Acquired 8 matter. 02764_ EXIT=FOUND 02769_ ALERT: Rogue bot located, Programmers report to Factory Zone 9F. 02803_ Lgt. Nuclear Core destroyed. 02813_ U-05 Engineer builds a Wall. 02816_ Terminal disabled. 02816_ G-50 Soldier knocked back. 02819_ G-47 Trooper knocked back. 02819_ G-47 Trooper calls for garrison reinforcements. 02819_ ALERT: Activating Garrison Access F004. 02822_ G-47 Trooper destroyed. 02824_ Critical hit (Burn: +37). 02825_ G-47 Trooper knocked back. 02827_ U-05 Engineer builds a Wall. Map ----- +----------------------------------------------------+ | ???? # """ #?????????????# #??????????? | | ?????? # """ #?????????????# #??????????? | | ???????? # """ #?????????????# #??????????? | | ????######+## #?????????????# #??????????? | | ???? # # """ #?????"???????# ############ | | ??? # + """ #?????"???????# # | | ??""""" # # """ #????? ???????# + | | ?"""""" # # #????? ???????# # | | """"""" # # ! !#?????/???????# # | | """"""" # # !!#????? ???????# # | | # # = #????# #????? # | | / ! + ############ #????# # ! | | ######### #? ## #????# < # | | ######### # ## #????# # ! | | !! # ## #????# # | | ! + ## #??########### | | ! """" # ##%##?# + | | ""F" ## ## "### #+#####+#### | | *[ !!!! #?? ## + # #???# #??? | | =[ #?? ## #### # #???# #??? | | [ #???#########!########+##+## #???# #??? | | #???? #??#%% u % #??## #??? | | #???"" #?## gg u ##### #### | | #### # """ #?##u*%" !!! | | #######??# # """ #?# [%"" !!! ########## | | ?????????# # #?# =@"T !!! # #? | | ?????????# # """ #?# "" + """ #? | | ?????????# # """ #?# "" # """"" #? | | ?????????# # """ #?# # """"" ?? | | ?????????# #?? #?# #? ??? | | ########## #####+##+### """"""""" #?######?# | | ########## | | ####################### | | ??????????????????????############################ | | ?????????????????????????????????????????????????? | | ?????????????????????????????????????????????????? | | ?????????????????????????????????????????????????? | | | | | | | | | | | | | | | | | | | | | | | | | | | +----------------------------------------------------+ Best States ------------- Heat Dissipation 65 Energy Generation 14 Energy Capacity 280 Matter Stores 300 Matter Capacity 300 Sight Range 16 Terrain Scan Range 14 Terrain Scan Density 10 ECM Strength 2 Base Temperature (-) 100 Armor Coverage 225 Evasion (%) 55 Targeting Accuracy 6 Offensive Hacking 30 Item Schematics ----------------- None Robot Schematics ------------------ None Fabricated ------------ Nothing Alien Tech Used ----------------- None Achievements -------------- None Challenges ------------ None Game ------ Seed FissionCoreNukerbomber Manual? 0 Play Time 00:19:31 Cumulative 34.3 hours Start 2022.12.12 @ 18:45:56 End 2022.12.13 @ 14:49:01 Sessions 3 Manual Loads 0 Difficulty Rogue Special Mode None Game No. 27 Rogue 27 Adventurer 0 Explorer 0 Win Type - Total 0 Types 0/0/0/0/0/0/0/0/0 Lore% 38 Gallery% 44 Achievement% 42 Wizard Run 0 Options --------- ASCII 0 Keyboard 1 Movement Vi Keybinds 0 Fullscreen 2 Font 18/Terminus Map View 76x50 Tactical HUD 1 Map Filters NONE Filters NONE Steam X RUN: 3e3cd065-2f84-4fa9-890c-bccb7d45314f